bitfinex/quotes_BTCUSD_20240620
["timestamp","ask_amount","ask_price","bid_price","bid_amount"]
[1718893914426,0.0458511,65140.0,65139.0,0.944]
[1718893914635,0.06877665,65142.0,65140.0,1.404546]
[1718893914636,0.0458511,65141.0,65140.0,1.404546]
[1718893914900,0.0458511,65141.0,65140.0,1.65710712]
[1718893915107,0.0458511,65142.0,65141.0,0.854439]
[1718893915271,0.0458511,65142.0,65141.0,1.03000012]
[1718893915483,0.0458511,65142.0,65141.0,2.06962612]
[1718893916107,0.16317563,65160.0,65158.0,0.01]
[1718893916294,0.16317563,65160.0,65158.0,0.16256112]
[1718893916463,0.00847,65160.0,65158.0,0.16256112]
[1718893917471,0.00847,65160.0,65158.0,0.19556112]
[1718893917681,0.16317563,65160.0,65158.0,0.19556112]
[1718893917884,0.16317563,65160.0,65158.0,0.18556112]
[1718893918285,0.00847,65160.0,65158.0,0.18756112]
[1718893918540,0.1631361,65160.0,65158.0,0.18756112]
[1718893918747,0.00847,65160.0,65158.0,0.18756112]
[1718893920035,0.00847,65160.0,65158.0,0.18856112]
[1718893920673,0.00847,65160.0,65158.0,0.16556112]
[1718893921283,0.32116,65159.0,65158.0,0.16556112]
[1718893921653,0.32116,65159.0,65158.0,0.15556112]
[1718893922004,0.32116,65159.0,65158.0,0.16556112]
[1718893922416,0.57076,65159.0,65158.0,0.15556112]
[1718893922771,0.00086,65159.0,65158.0,0.18856112]
[1718893922969,0.00086,65159.0,65158.0,0.76486112]
[1718893923391,0.13826926,65159.0,65158.0,0.75486112]
[1718893923757,0.00086,65159.0,65158.0,0.75486112]
[1718893923928,0.00086,65159.0,65158.0,0.76486112]
[1718893924107,0.00086,65159.0,65158.0,0.75486112]
[1718893924316,0.02866308,65159.0,65158.0,0.76486112]
[1718893924497,0.02866308,65159.0,65158.0,0.86486112]
[1718893924699,0.02866308,65159.0,65158.0,0.81486112]
[1718893924909,0.02866308,65159.0,65158.0,0.91686112]
[1718893925321,0.02866308,65159.0,65158.0,0.91486112]
[1718893925810,0.00086,65159.0,65158.0,0.91686112]
[1718893926012,0.02818391,65159.0,65158.0,1.58918012]
[1718893926216,0.11530432,65159.0,65158.0,1.89612612]
[1718893926436,0.14262823,65159.0,65158.0,1.89612612]
[1718893926599,0.02818391,65159.0,65158.0,1.89612612]
[1718893927037,0.12291432,65160.0,65159.0,0.3939]
[1718893927238,0.13735213,65168.0,65167.0,0.232]
[1718893927417,0.15452114,65175.0,65173.0,0.732]
[1718893927655,0.15452114,65175.0,65173.0,1.62977312]
[1718893927858,0.15452114,65175.0,65173.0,2.33773544]
[1718893928058,0.13728018,65175.0,65173.0,2.61814748]
[1718893928261,0.15452114,65178.0,65177.0,1.410184]
[1718893928461,0.15452114,65178.0,65177.0,1.63847984]
[1718893928661,0.15444061,65183.0,65182.0,0.58]
[1718893928844,0.00862,65184.0,65183.0,0.08]
[1718893929046,0.00862,65184.0,65183.0,0.50897512]
[1718893929286,0.00862,65184.0,65183.0,0.51097512]
[1718893929689,0.00862,65184.0,65183.0,0.81780312]
[1718893929945,0.00862,65184.0,65183.0,0.92756112]
[1718893930367,0.00862,65184.0,65183.0,0.91756112]
[1718893930566,0.00862,65184.0,65183.0,0.92756112]
[1718893930803,0.00862,65184.0,65183.0,0.91756112]
[1718893931021,0.00862,65184.0,65183.0,0.93756112]
[1718893931228,0.00862,65184.0,65183.0,1.03956112]
[1718893931441,0.00862,65184.0,65183.0,2.33963784]
[1718893931656,0.00862,65184.0,65183.0,2.64646584]
[1718893931857,0.14578732,65184.0,65183.0,2.64646584]
[1718893932262,0.00862,65184.0,65183.0,2.66046584]
[1718893932469,0.00862,65184.0,65183.0,2.76046584]
[1718893932889,1e-08,65184.0,65183.0,2.76046584]
[1718893933100,1e-08,65184.0,65183.0,2.70773112]
[1718893933303,0.00862,65186.0,65185.0,0.854128]
[1718893933506,0.00862,65186.0,65185.0,2.37182784]
[1718893935118,0.00862,65191.0,65190.0,1.190858]
[1718893935315,0.00862,65191.0,65190.0,1.58105384]
[1718893936005,0.00862,65191.0,65190.0,1.27425884]
[1718893936209,0.00862,65191.0,65190.0,1.12086184]
[1718893936565,0.00862,65191.0,65190.0,1.38316184]
[1718893936782,0.00862,65191.0,65190.0,1.39716184]
[1718893937219,0.01819121,65191.0,65190.0,1.52692712]
[1718893937672,0.01819121,65191.0,65190.0,1.57966184]
[1718893938392,0.0155451,65191.0,65190.0,1.57966184]
[1718893938733,0.01554527,65191.0,65190.0,1.57966184]
[1718893939316,0.01554527,65191.0,65190.0,1.52692712]
[1718893939518,0.01554527,65191.0,65190.0,1.57966184]
[1718893939717,0.01554527,65191.0,65190.0,1.52692712]
[1718893941129,0.00597389,65191.0,65190.0,1.52692712]
[1718893941333,0.01554526,65191.0,65190.0,1.52692712]
[1718893941967,0.01554526,65191.0,65190.0,1.42492712]
[1718893942201,0.01554526,65191.0,65190.0,0.81222712]
[1718893942350,0.01554526,65191.0,65190.0,0.76356112]
[1718893942961,0.01554526,65191.0,65190.0,0.69056112]
[1718893943363,0.01554526,65191.0,65190.0,0.66256112]
[1718893943534,0.00597389,65191.0,65190.0,0.66256112]
[1718893943735,0.01554562,65191.0,65190.0,0.67656112]
[1718893944183,0.17013922,65191.0,65190.0,0.69056112]
[1718893944385,0.01554562,65191.0,65190.0,0.70056112]
[1718893944588,0.01554562,65191.0,65190.0,0.69056112]
[1718893944966,0.01554562,65191.0,65190.0,0.71356112]
[1718893945484,0.01554562,65191.0,65190.0,0.69956112]
[1718893945851,0.01554562,65191.0,65190.0,0.71356112]
[1718893946055,0.01554563,65191.0,65190.0,0.71356112]
[1718893946251,0.01554563,65191.0,65190.0,0.69956112]
[1718893946726,0.01554563,65191.0,65190.0,0.71684792]
[1718893946881,0.01554563,65191.0,65190.0,0.72684792]
[1718893947086,0.01554563,65191.0,65190.0,0.71684792]
[1718893948682,0.01554569,65191.0,65190.0,0.71684792]
[1718893948851,0.01554569,65191.0,65190.0,0.73084792]
[1718893949682,0.01554569,65191.0,65190.0,0.74084792]
[1718893949872,0.01554569,65191.0,65190.0,0.75084792]
[1718893950254,0.01554569,65191.0,65190.0,0.70356112]
[1718893950429,0.58214569,65191.0,65190.0,0.69056112]
[1718893950657,0.80798727,65191.0,65190.0,0.69056112]
[1718893951062,0.24138727,65191.0,65190.0,0.70056112]
[1718893951180,0.01554566,65191.0,65190.0,0.70056112]
[1718893951383,0.01554566,65191.0,65190.0,0.69056112]
[1718893951631,0.01554566,65191.0,65190.0,0.70056112]
[1718893951632,0.24147586,65191.0,65190.0,0.70056112]
[1718893951832,0.24147586,65191.0,65190.0,0.71356112]
[1718893952415,0.01554566,65191.0,65190.0,0.71356112]
[1718893952782,0.00597389,65191.0,65190.0,0.71349909]
[1718893952937,0.05060065,65191.0,65190.0,0.71349909]
[1718893955571,0.05056052,65191.0,65190.0,0.71349909]
[1718893958998,0.05056052,65191.0,65190.0,0.18049909]
[1718893959337,0.62496052,65191.0,65190.0,0.18049909]
[1718893960577,0.62496052,65191.0,65190.0,0.16649909]
[1718893961010,0.62496052,65191.0,65190.0,0.15249909]
[1718893961159,0.62496052,65191.0,65190.0,0.18049909]
[1718893961327,0.62496052,65191.0,65190.0,0.16649909]
[1718893962858,0.62496052,65191.0,65190.0,0.15249909]
[1718893963060,0.62496052,65191.0,65190.0,0.16249909]
[1718893963269,0.62496052,65191.0,65190.0,0.17649909]
[1718893963270,0.05156052,65191.0,65190.0,0.17649909]
[1718893963508,0.33331703,65197.0,65195.0,0.01]
[1718893963655,0.33331703,65197.0,65196.0,0.16256112]
[1718893964056,0.33331703,65197.0,65196.0,0.15256112]
[1718893964274,0.33331703,65197.0,65196.0,0.16256112]
[1718893964880,0.001,65197.0,65196.0,0.16256112]
[1718893965249,0.001,65197.0,65196.0,0.19656112]
[1718893966968,0.001,65197.0,65196.0,0.17356112]
[1718893967250,0.001,65197.0,65196.0,0.16356112]
[1718893967461,0.2553,65199.0,65196.0,0.16356112]
[1718893967874,0.2553,65199.0,65196.0,0.17356112]
[1718893968120,0.2553,65199.0,65196.0,0.18356112]
[1718893968459,0.2553,65199.0,65196.0,0.16256112]
[1718893968659,0.2553,65199.0,65196.0,0.16156112]
[1718893968886,0.2553,65199.0,65196.0,0.17856112]
[1718893969104,0.001334,65197.0,65196.0,0.16856112]
[1718893970003,0.001334,65197.0,65196.0,0.17856112]
[1718893970203,0.2553,65199.0,65198.0,0.01]
[1718893970405,0.2553,65199.0,65198.0,0.16256112]
[1718893971634,0.27936343,65199.0,65198.0,0.17156112]
[1718893972042,0.28022343,65199.0,65198.0,0.17156112]
[1718893973231,0.25616,65199.0,65198.0,0.17856112]
[1718893976438,0.00086,65199.0,65198.0,0.18856112]
[1718893976581,0.00086,65199.0,65198.0,0.20156112]
[1718893977416,0.00086,65199.0,65198.0,0.19556112]
[1718893977758,0.00086,65199.0,65198.0,0.20956112]
[1718893978188,0.00086,65199.0,65198.0,0.19556112]
[1718893978388,0.00086,65199.0,65198.0,0.20956112]
[1718893978581,0.00086,65199.0,65198.0,0.21956112]
[1718893978782,0.00086,65199.0,65198.0,0.20956112]
[1718893979798,0.00086,65199.0,65198.0,0.22356112]
[1718893980443,0.00086,65199.0,65198.0,0.20956112]
[1718893981605,0.00086,65199.0,65198.0,0.21356112]
[1718893983901,0.00086,65199.0,65198.0,0.19956112]
[1718893984109,0.00086,65199.0,65198.0,0.21956112]
[1718893984311,0.00086,65199.0,65198.0,1.92732947]
[1718893984508,0.33188509,65224.0,65215.0,0.01]
[1718893984509,0.001334,65216.0,65215.0,0.01]
[1718893984708,0.001334,65216.0,65215.0,0.16256112]
[1718893984932,0.001334,65216.0,65215.0,0.15256112]
[1718893985917,0.001334,65216.0,65215.0,0.16256112]
[1718893986116,0.001334,65216.0,65215.0,0.15256112]
[1718893989481,0.001334,65216.0,65215.0,0.18856112]
[1718893989678,0.570934,65219.0,65215.0,0.18856112]
[1718893989879,2.0,65220.0,65219.0,0.01]
[1718893990202,2.0,65220.0,65219.0,0.16256112]
[1718893990796,2.0,65220.0,65219.0,0.43066112]
[1718893990998,2.0,65220.0,65219.0,0.44466112]
[1718893991208,2.0,65220.0,65219.0,0.45466112]
[1718893991405,2.0,65220.0,65219.0,0.44066112]
[1718893991639,2.0,65220.0,65219.0,0.43066112]
[1718893991958,2.0,65220.0,65219.0,0.45466112]
[1718893992479,2.0,65220.0,65219.0,0.47866112]
[1718893992684,2.0,65220.0,65219.0,0.46866112]
[1718893993855,2.0,65220.0,65219.0,0.45866112]
[1718893994031,2.0,65220.0,65219.0,0.46866112]
[1718893994243,2.0,65220.0,65219.0,0.45866112]
[1718893994443,2.0,65220.0,65219.0,0.43066112]
[1718893994921,2.0,65220.0,65219.0,0.46866112]
[1718893995099,2.0,65220.0,65219.0,0.47866112]
[1718893995454,2.0,65220.0,65219.0,0.45866112]
[1718893995664,2.0,65220.0,65219.0,0.46866112]
[1718893995871,2.0,65220.0,65219.0,0.47866112]
[1718893996294,2.0,65220.0,65219.0,0.57866112]
[1718893996816,2.0,65220.0,65219.0,0.58066112]
[1718893996991,2.0,65220.0,65219.0,0.47866112]
[1718893997198,2.0,65220.0,65219.0,0.56666112]
[1718893997415,2.0,65220.0,65219.0,0.46466112]
[1718893997615,2.0,65220.0,65219.0,0.45066112]
[1718893998200,2.0,65220.0,65219.0,0.55066112]
[1718893998429,2.0,65220.0,65219.0,0.56666112]
[1718893998872,2.0,65220.0,65219.0,1.54387412]
[1718893999079,2.0,65220.0,65219.0,1.86767412]
[1718893999737,2.0,65220.0,65219.0,1.91246412]
[1718893999972,2.0,65220.0,65219.0,1.96246412]
[1718894000174,2.0,65220.0,65219.0,2.06246412]
[1718894000374,2.0,65220.0,65219.0,2.36912312]
[1718894000579,2.0,65220.0,65219.0,2.35512312]
[1718894000933,2.0,65220.0,65219.0,2.48252526]
[1718894001166,2.0,65220.0,65219.0,2.48252507]
[1718894001414,0.38222794,65220.0,65219.0,2.94316407]
[1718894001632,0.32622921,65220.0,65219.0,2.98868993]
[1718894002276,0.32622921,65220.0,65219.0,3.68868993]
[1718894002820,0.32622921,65220.0,65219.0,3.31885905]
[1718894003022,0.32622921,65220.0,65219.0,1.90424712]
[1718894003281,0.32622921,65220.0,65219.0,1.20424712]
[1718894003479,0.32622921,65220.0,65219.0,1.03234712]
[1718894003906,0.32622921,65220.0,65219.0,1.04234712]
[1718894004497,0.32622921,65220.0,65219.0,1.03234712]
[1718894004696,0.32622921,65220.0,65219.0,1.04634712]
[1718894004897,0.32622921,65220.0,65219.0,1.04234712]
[1718894005103,0.32622921,65220.0,65219.0,1.05634712]
[1718894005302,0.32622921,65220.0,65219.0,2.59005312]
[1718894005528,0.32622921,65220.0,65219.0,2.40755312]
[1718894005755,0.32622921,65220.0,65219.0,2.58689412]
[1718894005960,0.32622921,65220.0,65219.0,1.99657612]
[1718894006395,0.32622921,65220.0,65219.0,2.01057612]
[1718894006534,0.32622921,65220.0,65219.0,2.62484012]
[1718894006733,0.28923071,65220.0,65219.0,2.91749912]
[1718894007119,0.28923071,65220.0,65219.0,3.04489883]
[1718894007120,0.29009071,65220.0,65219.0,3.04489883]
[1718894007303,0.00018509,65224.0,65223.0,0.01]
[1718894007536,0.00018509,65224.0,65223.0,3.31611712]
[1718894007712,0.00862,65225.0,65224.0,1.189943]
[1718894007916,0.00862,65225.0,65224.0,1.46550412]
[1718894008126,0.00124663,65240.0,65239.0,0.51]
[1718894008328,0.00124663,65240.0,65239.0,0.68556112]
[1718894009279,0.00124663,65240.0,65239.0,0.65256112]
[1718894009485,0.57204663,65240.0,65239.0,0.65256112]
[1718894009716,0.75588063,65240.0,65239.0,0.66656112]
[1718894009926,0.75454663,65240.0,65239.0,0.66656112]
[1718894010133,0.57204663,65240.0,65239.0,0.66656112]
[1718894010341,0.00124663,65240.0,65239.0,0.66256112]
[1718894010789,0.00124663,65240.0,65239.0,0.67656112]
[1718894010989,0.00124663,65240.0,65239.0,0.95416112]
[1718894011394,0.00124663,65240.0,65239.0,0.96816112]
[1718894011594,0.00124663,65240.0,65239.0,1.03682712]
[1718894011899,0.00124663,65240.0,65239.0,1.02282712]
[1718894012108,0.00124663,65240.0,65239.0,1.17610912]
[1718894012311,0.00124663,65240.0,65239.0,1.29010912]
[1718894012660,0.00124663,65240.0,65239.0,1.27610912]
[1718894013067,0.00124663,65240.0,65239.0,2.89221084]
[1718894013281,0.00124663,65240.0,65239.0,3.19877584]
[1718894014027,0.00124663,65240.0,65239.0,2.80192912]
[1718894014264,0.00124663,65240.0,65239.0,2.50936412]
[1718894014440,0.00124663,65240.0,65239.0,2.82496412]
[1718894014587,0.00124663,65240.0,65239.0,2.34911712]
[1718894014793,0.00124663,65240.0,65239.0,1.36756112]
[1718894014989,0.00124663,65240.0,65239.0,1.36256112]
[1718894014990,0.56194663,65240.0,65239.0,1.36256112]
[1718894015190,0.56194663,65240.0,65239.0,0.69056112]
[1718894015386,0.56194663,65240.0,65239.0,0.68056112]
[1718894015781,0.55694663,65240.0,65239.0,0.65256112]
[1718894016201,0.74078063,65240.0,65239.0,0.65256112]
[1718894016336,0.74078063,65240.0,65239.0,0.15256112]
[1718894016740,0.75386559,65240.0,65239.0,0.15256112]
[1718894017369,0.75386559,65240.0,65239.0,0.16656112]
[1718894017570,0.75386559,65240.0,65239.0,0.15256112]
[1718894017937,0.75386559,65240.0,65239.0,0.16656112]
[1718894018373,0.75386559,65240.0,65239.0,0.18056112]
[1718894018796,0.75522428,65240.0,65239.0,0.18056112]
[1718894019002,0.75522428,65240.0,65239.0,0.014]
[1718894019203,0.76522428,65240.0,65239.0,0.014]
[1718894019403,0.75522428,65240.0,65239.0,0.028]
[1718894020192,0.57272428,65240.0,65239.0,0.014]
[1718894020516,0.57272428,65240.0,65230.0,0.51]
[1718894020728,0.5714,65233.0,65231.0,0.15256112]
[1718894020949,0.01444365,65232.0,65231.0,0.15256112]
[1718894021169,0.5714,65233.0,65232.0,0.01]
[1718894021418,0.5714,65233.0,65232.0,0.16256112]
[1718894021419,0.58677544,65233.0,65232.0,0.16256112]
[1718894022696,0.5641,65237.0,65232.0,0.18556112]
[1718894022848,0.5641,65237.0,65236.0,0.01]
[1718894023058,0.5641,65237.0,65236.0,0.16256112]
[1718894023059,0.58004898,65237.0,65236.0,0.16256112]
[1718894023233,0.58004898,65237.0,65236.0,0.15256112]
[1718894023440,0.58004898,65237.0,65236.0,0.16256112]
[1718894023846,0.58004877,65237.0,65236.0,0.16256112]
[1718894024632,0.58004877,65237.0,65236.0,0.15256112]
[1718894024867,0.58004877,65237.0,65236.0,0.16256112]
[1718894025076,0.58004877,65237.0,65236.0,0.17656112]
[1718894026354,0.58050267,65237.0,65236.0,0.17656112]
[1718894026490,0.58050267,65237.0,65236.0,0.16656112]
[1718894026691,0.58183667,65237.0,65236.0,0.16656112]
[1718894026897,0.58050267,65237.0,65236.0,0.16656112]
[1718894028668,0.58183667,65237.0,65236.0,0.16656112]
[1718894028939,0.76552716,65237.0,65236.0,0.18056112]
[1718894029259,0.77552716,65237.0,65236.0,0.18056112]
[1718894029504,0.82136706,65237.0,65236.0,0.18056112]
[1718894029677,0.77552716,65237.0,65236.0,0.18056112]
[1718894029885,0.82136706,65237.0,65236.0,0.028]
[1718894030083,0.87552716,65237.0,65236.0,0.028]
[1718894030652,0.96725392,65237.0,65236.0,0.028]
[1718894030940,0.96725392,65237.0,65219.0,0.000946]
[1718894030941,0.576134,65220.0,65219.0,0.000946]
[1718894031134,0.576134,65220.0,65219.0,0.15350712]
[1718894031135,0.758634,65220.0,65219.0,0.15350712]
[1718894031353,0.78622716,65220.0,65219.0,0.15350712]
[1718894031557,0.78644372,65220.0,65219.0,0.15350712]
[1718894031926,0.60394372,65220.0,65219.0,0.15350712]
[1718894032546,0.60394372,65220.0,65204.0,0.01]
[1718894032547,0.556634,65215.0,65204.0,0.01]
[1718894032735,0.01914372,65214.0,65205.0,0.15256112]
[1718894032919,0.02914372,65214.0,65205.0,0.16256112]
[1718894033120,0.001334,65212.0,65205.0,0.15256112]
[1718894033323,0.3206,65211.0,65205.0,0.15256112]
[1718894033539,0.01780972,65210.0,65205.0,0.16256112]
[1718894033736,0.01780972,65210.0,65205.0,0.15256112]
[1718894033949,0.321934,65211.0,65205.0,0.16256112]
[1718894034152,0.02007645,65209.0,65205.0,0.17656112]
[1718894034375,0.001334,65206.0,65205.0,0.15256112]
[1718894034797,0.02007645,65210.0,65206.0,0.01]
[1718894034996,0.02007884,65209.0,65208.0,0.01]
[1718894035207,0.02007884,65209.0,65208.0,0.23884284]
[1718894035563,0.001334,65219.0,65213.0,0.01]
[1718894035768,0.01933848,65218.0,65214.0,0.15256112]
[1718894036386,0.001334,65216.0,65214.0,0.15256112]
[1718894036561,0.59245303,65215.0,65214.0,0.15256112]
[1718894037201,0.59245303,65215.0,65214.0,0.16056112]
[1718894037631,0.59245303,65215.0,65214.0,0.15256112]
[1718894037840,0.59245303,65215.0,65214.0,0.008]
[1718894038041,0.59478703,65215.0,65214.0,0.008]
[1718894038623,0.59478703,65215.0,65214.0,0.16056112]
[1718894038984,0.575634,65215.0,65214.0,0.16056112]
[1718894039173,0.575634,65215.0,65214.0,0.15256112]
[1718894039174,0.59173437,65215.0,65214.0,0.15256112]
[1718894039569,0.59273437,65215.0,65214.0,0.16656112]
[1718894039826,0.59273437,65215.0,65214.0,0.014]
[1718894039827,0.60273437,65215.0,65214.0,0.014]
[1718894040127,0.60273437,65215.0,65199.0,0.01]
[1718894040128,0.5569,65204.0,65199.0,0.01]
[1718894040343,0.5569,65204.0,65200.0,0.15256112]
[1718894040548,0.1825,65201.0,65200.0,0.15256112]
[1718894042597,0.19888133,65201.0,65200.0,0.15256112]
[1718894042792,0.1825,65201.0,65200.0,0.15256112]
[1718894042994,0.19888056,65201.0,65200.0,0.15256112]
[1718894043141,0.19888056,65201.0,65200.0,0.16656112]
[1718894043142,0.19988056,65201.0,65200.0,0.16656112]
[1718894044212,0.19912789,65201.0,65200.0,0.16656112]
[1718894044413,0.20912789,65201.0,65200.0,0.16656112]
[1718894044882,0.19912789,65201.0,65200.0,0.16656112]
[1718894045330,0.01662789,65201.0,65200.0,0.16656112]
[1718894046309,0.01562789,65201.0,65200.0,0.15256112]
[1718894046513,0.01662789,65201.0,65200.0,0.16656112]
[1718894046712,0.01638938,65201.0,65200.0,0.16656112]
[1718894047085,0.01672338,65201.0,65200.0,0.15256112]
[1718894047203,0.01772338,65201.0,65200.0,0.16656112]
[1718894047438,0.01772338,65201.0,65200.0,0.014]
[1718894047439,0.07618572,65201.0,65200.0,0.014]
[1718894047978,0.02872338,65201.0,65200.0,0.028]
[1718894048384,0.01872338,65201.0,65200.0,0.028]
[1718894048587,0.02872338,65201.0,65200.0,0.028]
[1718894048993,0.0272757,65201.0,65200.0,0.028]
[1718894049193,0.68513539,65201.0,65200.0,0.028]
[1718894049369,0.61671782,65201.0,65200.0,0.028]
[1718894049555,0.89921782,65201.0,65200.0,0.028]
[1718894049756,0.001334,65193.0,65190.0,0.000946]
[1718894050011,0.57304212,65192.0,65191.0,0.15256112]
[1718894050370,0.7416,65192.0,65191.0,0.15256112]
[1718894050599,0.742934,65192.0,65191.0,0.15256112]
[1718894051001,0.76540208,65192.0,65191.0,0.15256112]
[1718894051199,0.76540208,65192.0,65190.0,0.014946]
[1718894051200,0.011334,65191.0,65190.0,0.014946]
[1718894051405,0.12380446,65191.0,65190.0,0.014946]
[1718894051650,0.12380446,65191.0,65174.0,0.061485]
[1718894051651,0.001334,65182.0,65174.0,0.061485]
[1718894051857,0.5502,65181.0,65175.0,0.61025146]
[1718894051983,0.551534,65181.0,65175.0,0.15256112]
[1718894052440,0.01,65180.0,65175.0,0.15256112]
[1718894052583,0.01,65179.0,65175.0,0.15256112]
[1718894052779,0.01,65177.0,65175.0,0.15256112]
[1718894052980,0.011334,65178.0,65175.0,0.15256112]
[1718894053224,0.1825,65176.0,65175.0,0.15256112]
[1718894053640,0.1825,65176.0,65157.0,0.200933]
[1718894053641,0.01,65169.0,65157.0,0.200933]
[1718894053838,0.01,65169.0,65158.0,0.61025146]
[1718894054122,0.01,65169.0,65158.0,0.16256112]
[1718894054123,0.3014,65167.0,65158.0,0.16256112]
[1718894054361,0.1825,65159.0,65158.0,0.16256112]
[1718894054970,0.001334,65170.0,65158.0,0.16256112]
[1718894054971,0.001334,65170.0,65168.0,0.01]
[1718894055168,0.001334,65170.0,65169.0,0.15256112]
[1718894055371,0.183834,65170.0,65169.0,0.15256112]
[1718894055520,0.183834,65170.0,65158.0,0.01]
[1718894055521,0.001334,65164.0,65158.0,0.01]
[1718894055745,0.001334,65164.0,65159.0,0.15256112]
[1718894055985,0.1825,65160.0,65159.0,0.15256112]
[1718894056415,0.1825,65160.0,65159.0,0.16256112]
[1718894056815,0.1825,65160.0,65159.0,0.15256112]
[1718894057018,0.183834,65160.0,65159.0,0.15256112]
[1718894057626,0.2590174,65160.0,65159.0,0.15256112]
[1718894057804,0.184834,65160.0,65159.0,0.15256112]
[1718894057998,0.185834,65160.0,65159.0,0.15356112]
[1718894058219,0.1845,65160.0,65159.0,0.15356112]
[1718894058671,0.18376069,65160.0,65159.0,0.15356112]
[1718894059465,0.18509469,65160.0,65159.0,0.15356112]
[1718894059833,0.18409469,65160.0,65159.0,0.15356112]
[1718894060239,0.52690416,65160.0,65159.0,0.001]
[1718894060438,0.52690416,65160.0,65145.0,0.01844636]
[1718894060439,0.001334,65154.0,65145.0,0.01844636]
[1718894060661,0.559734,65154.0,65142.0,0.01]
[1718894060866,0.6267074,65154.0,65142.0,0.01]
[1718894061043,0.852234,65154.0,65141.0,0.01]
[1718894061251,0.842234,65154.0,65140.0,0.01]
[1718894061478,0.852234,65154.0,65139.0,0.019471]
[1718894061894,1.034734,65154.0,65139.0,0.019471]
[1718894062093,0.011334,65149.0,65139.0,0.019471]
[1718894062293,0.564034,65149.0,65139.0,0.019471]
[1718894062452,0.846534,65149.0,65139.0,0.009471]
[1718894062651,0.846534,65149.0,65139.0,0.019471]
[1718894063402,0.846534,65149.0,65139.0,0.009471]
[1718894063809,0.556634,65140.0,65139.0,0.009471]
[1718894064013,0.829134,65140.0,65139.0,0.009471]
[1718894064219,0.9130474,65140.0,65139.0,0.009471]
[1718894065355,0.011334,65135.0,65134.0,0.00948199]
[1718894065591,0.773634,65135.0,65134.0,0.00948199]
[1718894065806,1.056134,65135.0,65134.0,0.00948199]
[1718894066021,1.056134,65135.0,65131.0,0.009471]
[1718894066022,0.011334,65132.0,65131.0,0.009471]
[1718894066281,0.001334,65125.0,65124.0,0.009471]
[1718894066453,0.572934,65125.0,65124.0,0.009471]
[1718894066691,0.572934,65125.0,65124.0,0.16203212]
[1718894066692,0.04097511,65125.0,65124.0,0.16203212]
[1718894066899,0.183834,65125.0,65124.0,0.16203212]
[1718894067725,0.183834,65125.0,65124.0,0.009471]
[1718894067932,0.184834,65125.0,65124.0,0.009471]
[1718894068359,0.2604774,65125.0,65124.0,0.009471]
[1718894068770,0.40782427,65125.0,65124.0,0.009471]
[1718894069551,0.3694774,65125.0,65124.0,0.009471]
[1718894070339,0.9357774,65125.0,65124.0,0.009471]
[1718894070550,0.011334,65115.0,65114.0,0.00123887]
[1718894070788,0.576634,65115.0,65114.0,0.00123887]
[1718894070994,0.9415436,65115.0,65114.0,0.00123887]
[1718894071247,1.05394796,65115.0,65114.0,0.00123887]
[1718894071478,0.011334,65110.0,65109.0,0.00948199]
[1718894071692,0.0526142,65110.0,65109.0,0.00948199]
[1718894071900,0.2351142,65110.0,65109.0,0.00948199]
[1718894072114,0.3351142,65110.0,65109.0,0.00948199]
[1718894072327,0.450609,65110.0,65109.0,0.00948199]
[1718894072539,0.7141142,65110.0,65109.0,0.00948199]
[1718894072764,0.7552436,65110.0,65109.0,0.00948199]
[1718894074028,0.663834,65110.0,65109.0,0.00948199]
[1718894074245,0.662834,65110.0,65109.0,0.00948199]
[1718894074667,0.005,65110.0,65109.0,0.17204311]
[1718894074878,0.1,65119.0,65113.0,0.01]
[1718894075133,0.2486,65121.0,65112.0,0.01]
[1718894075356,0.2486,65121.0,65114.0,0.01]
[1718894075598,0.2486,65121.0,65112.0,0.15256112]
[1718894075599,0.2486,65121.0,65112.0,0.16256112]
[1718894075810,0.2486,65121.0,65112.0,0.15256112]
[1718894076460,0.007,65119.0,65112.0,0.15256112]
[1718894076869,0.017,65119.0,65112.0,0.15256112]
[1718894077092,0.01,65117.0,65109.0,0.00948199]
[1718894077293,0.29366,65118.0,65082.0,0.00948199]
[1718894077294,0.2464,65098.0,65082.0,0.00948199]
[1718894077467,0.2464,65098.0,65086.0,0.45769034]
[1718894077468,0.01,65094.0,65086.0,0.45769034]
[1718894077682,0.1,65097.0,65086.0,0.45769034]
[1718894077683,0.01,65095.0,65086.0,0.45769034]
[1718894077910,0.1,65097.0,65082.0,0.00948199]
[1718894077911,0.04135741,65094.0,65089.0,0.01]
[1718894078082,0.1,65097.0,65089.0,0.01]
[1718894078284,0.04152091,65096.0,65089.0,0.01]
[1718894078606,0.1825,65094.0,65089.0,0.01]
[1718894079019,0.22672925,65094.0,65093.0,0.003946]
[1718894079217,0.1825,65094.0,65093.0,0.001946]
[1718894079422,0.4922,65094.0,65093.0,0.001946]
[1718894079743,0.5022,65094.0,65093.0,0.001946]
[1718894079939,0.6022,65094.0,65093.0,0.001946]
[1718894080261,0.5922,65094.0,65093.0,0.001946]
[1718894080467,0.65242,65094.0,65093.0,0.001946]
[1718894080622,0.42812,65094.0,65093.0,0.001946]
[1718894080836,0.79751317,65094.0,65093.0,0.001946]
[1718894081017,0.8436052,65094.0,65093.0,0.001946]
[1718894081966,0.2704,65083.0,65082.0,0.00948199]
[1718894082325,0.41449317,65083.0,65082.0,0.00948199]
[1718894083162,0.4605852,65083.0,65082.0,0.00948199]
[1718894083416,0.4515852,65083.0,65082.0,0.00948199]
[1718894083653,0.40549317,65083.0,65082.0,0.00948199]
[1718894084347,0.41549317,65083.0,65082.0,0.00948199]
[1718894084546,0.3714,65083.0,65082.0,0.00948199]
[1718894084970,0.41294932,65083.0,65082.0,0.00948199]
[1718894085169,0.45704249,65083.0,65082.0,0.00948199]
[1718894085602,0.50313452,65083.0,65082.0,0.00948199]
[1718894085796,0.45704249,65083.0,65082.0,0.00948199]
[1718894085997,0.41294932,65083.0,65082.0,0.00948199]
[1718894087503,0.41394932,65083.0,65082.0,0.00948199]
[1718894088364,0.102,65083.0,65082.0,0.00948199]
[1718894088544,0.002,65083.0,65082.0,0.00948199]
[1718894089353,0.002,65083.0,65082.0,0.16204311]
[1718894089560,0.002,65083.0,65082.0,0.17204311]
[1718894090861,0.001,65083.0,65082.0,0.17204311]
[1718894091270,0.002,65083.0,65082.0,0.17204311]
[1718894091646,0.001,65083.0,65082.0,0.17204311]
[1718894091851,0.001,65083.0,65082.0,0.74984311]